Workbook

Sheet Дети до 3-х лет
B1: МБДОУ д/с № 362
A2: Прием пищи | B2: Блюдо | C2: Выход | D2: Калорийность | E2: Белки | F2: Жиры | G2: Углеводы
A3: Завтрак | B3: ='[1]Дневной рацион, Дети до 3х лет'!D4 -> Каша вязкая молочная пшенная. | C3: ='[2]Дневной рацион, Дети до 3х лет'!E4 -> 176 | D3: ='[1]Дневной рацион, Дети до 3х лет'!G4 -> 175.27 | E3: ='[1]Дневной рацион, Дети до 3х лет'!H4 -> 5.355 | F3: ='[1]Дневной рацион, Дети до 3х лет'!I4 -> 6.46 | G3: ='[1]Дневной рацион, Дети до 3х лет'!J4 -> 23.97
B4: ='[1]Дневной рацион, Дети до 3х лет'!D5 -> Бутерброды с маслом . | C4: ='[2]Дневной рацион, Дети до 3х лет'!E5 -> 25 | D4: ='[1]Дневной рацион, Дети до 3х лет'!G5 -> 121.667 | E4: ='[1]Дневной рацион, Дети до 3х лет'!H5 -> 1.334 | F4: ='[1]Дневной рацион, Дети до 3х лет'!I5 -> 9.167 | G4: ='[1]Дневной рацион, Дети до 3х лет'!J5 -> 8.334
B5: ='[1]Дневной рацион, Дети до 3х лет'!D6 -> Сыр | C5: ='[2]Дневной рацион, Дети до 3х лет'!E6 -> 180 | D5: ='[1]Дневной рацион, Дети до 3х лет'!G6 -> 120.01 | E5: ='[1]Дневной рацион, Дети до 3х лет'!H6 -> 7.7 | F5: ='[1]Дневной рацион, Дети до 3х лет'!I6 -> 9.9 | G5: ='[1]Дневной рацион, Дети до 3х лет'!J6 -> 0
B6: ='[1]Дневной рацион, Дети до 3х лет'!D7 -> КОФЕЙНЫЙ НАПИТОК С МОЛОКОМ . | D6: ='[1]Дневной рацион, Дети до 3х лет'!G7 -> 50.065 | E6: ='[1]Дневной рацион, Дети до 3х лет'!H7 -> 1.955 | F6: ='[1]Дневной рацион, Дети до 3х лет'!I7 -> 1.615 | G6: ='[1]Дневной рацион, Дети до 3х лет'!J7 -> 6.97
A7: Обед | B7: ='[3]Дневной рацион, Дети 3-7 лет, '!D8 -> Суп картофельный с крупой гречневой. | C7: ='[5]Дневной рацион, Дети до 3х лет'!E8 -> 170 | D7: ='[5]Дневной рацион, Дети до 3х лет'!F8 -> 0 | E7: ='[5]Дневной рацион, Дети до 3х лет'!G8 -> 59.33 | F7: ='[5]Дневной рацион, Дети до 3х лет'!H8 -> 1.513 | G7: ='[5]Дневной рацион, Дети до 3х лет'!I8 -> 1.853
B8: ='[3]Дневной рацион, Дети 3-7 лет, '!D9 -> Печень говяжья по-строгановски. | C8: ='[5]Дневной рацион, Дети до 3х лет'!E9 -> 60 | D8: ='[5]Дневной рацион, Дети до 3х лет'!F9 -> 0 | E8: ='[5]Дневной рацион, Дети до 3х лет'!G9 -> 170.28 | F8: ='[5]Дневной рацион, Дети до 3х лет'!H9 -> 12.12 | G8: ='[5]Дневной рацион, Дети до 3х лет'!I9 -> 11.28
B9: ='[3]Дневной рацион, Дети 3-7 лет, '!D10 -> Пюре картофельное . | C9: ='[5]Дневной рацион, Дети до 3х лет'!E10 -> 100 | D9: ='[5]Дневной рацион, Дети до 3х лет'!F10 -> 0 | E9: ='[5]Дневной рацион, Дети до 3х лет'!G10 -> 143.91 | F9: ='[5]Дневной рацион, Дети до 3х лет'!H10 -> 2.728 | G9: ='[5]Дневной рацион, Дети до 3х лет'!I10 -> 5.182
B10: ='[3]Дневной рацион, Дети 3-7 лет, '!D11 -> Компот из сушеных фруктов (изюм). | C10: ='[5]Дневной рацион, Дети до 3х лет'!E11 -> 177 | D10: ='[5]Дневной рацион, Дети до 3х лет'!F11 -> 0 | E10: ='[5]Дневной рацион, Дети до 3х лет'!G11 -> 18.09 | F10: ='[5]Дневной рацион, Дети до 3х лет'!H11 -> 0.319 | G10: ='[5]Дневной рацион, Дети до 3х лет'!I11 -> 0.018
B11: ='[3]Дневной рацион, Дети 3-7 лет, '!D12 -> Хлеб пшеничный | C11: ='[5]Дневной рацион, Дети до 3х лет'!E12 -> 30 | D11: ='[5]Дневной рацион, Дети до 3х лет'!F12 -> 0 | E11: ='[5]Дневной рацион, Дети до 3х лет'!G12 -> 0 | F11: ='[5]Дневной рацион, Дети до 3х лет'!H12 -> 0 | G11: ='[5]Дневной рацион, Дети до 3х лет'!I12 -> 0
B12: ='[3]Дневной рацион, Дети 3-7 лет, '!D13 -> Хлеб ржаной | C12: ='[5]Дневной рацион, Дети до 3х лет'!E13 -> 30 | D12: ='[5]Дневной рацион, Дети до 3х лет'!F13 -> 0 | E12: ='[5]Дневной рацион, Дети до 3х лет'!G13 -> 0 | F12: ='[5]Дневной рацион, Дети до 3х лет'!H13 -> 0 | G12: ='[5]Дневной рацион, Дети до 3х лет'!I13 -> 0
A13: Полдник | B13: ='[3]Дневной рацион, Дети 3-7 лет, '!D14 -> Булочка дорожная . | C13: ='[5]Дневной рацион, Дети до 3х лет'!E14 -> 51 | D13: ='[5]Дневной рацион, Дети до 3х лет'!F14 -> 0 | E13: ='[5]Дневной рацион, Дети до 3х лет'!G14 -> 169.32 | F13: ='[5]Дневной рацион, Дети до 3х лет'!H14 -> 3.57 | G13: ='[5]Дневной рацион, Дети до 3х лет'!I14 -> 1.428
B14: ='[3]Дневной рацион, Дети 3-7 лет, '!D15 -> Молоко кипяченое | C14: ='[5]Дневной рацион, Дети до 3х лет'!E15 -> 179 | D14: ='[5]Дневной рацион, Дети до 3х лет'!F15 -> 0 | E14: ='[5]Дневной рацион, Дети до 3х лет'!G15 -> 94.87 | F14: ='[5]Дневной рацион, Дети до 3х лет'!H15 -> 5.191 | G14: ='[5]Дневной рацион, Дети до 3х лет'!I15 -> 4.475
A15: Ужин | B15: ='[3]Дневной рацион, Дети 3-7 лет, '!D16 -> Кисель витаминизированный Витошка. | C15: ='[5]Дневной рацион, Дети до 3х лет'!E16 -> 175 | D15: ='[5]Дневной рацион, Дети до 3х лет'!F16 -> 0 | E15: ='[5]Дневной рацион, Дети до 3х лет'!G16 -> 46.725 | F15: ='[5]Дневной рацион, Дети до 3х лет'!H16 -> 0.175 | G15: ='[5]Дневной рацион, Дети до 3х лет'!I16 -> 0
B16: ='[3]Дневной рацион, Дети 3-7 лет, '!D17 -> Хлеб пшеничный | C16: ='[5]Дневной рацион, Дети до 3х лет'!E17 -> 20 | D16: ='[5]Дневной рацион, Дети до 3х лет'!F17 -> 0 | E16: ='[5]Дневной рацион, Дети до 3х лет'!G17 -> 0 | F16: ='[5]Дневной рацион, Дети до 3х лет'!H17 -> 0 | G16: ='[5]Дневной рацион, Дети до 3х лет'!I17 -> 0
B17: ='[3]Дневной рацион, Дети 3-7 лет, '!D18 -> Каша вязкая молочная овсяная с курагой. | C17: ='[5]Дневной рацион, Дети до 3х лет'!E18 -> 150 | D17: ='[5]Дневной рацион, Дети до 3х лет'!F18 -> 0 | E17: ='[5]Дневной рацион, Дети до 3х лет'!G18 -> 236.25 | F17: ='[5]Дневной рацион, Дети до 3х лет'!H18 -> 6.6 | G17: ='[5]Дневной рацион, Дети до 3х лет'!I18 -> 9.525
B18: ='[3]Дневной рацион, Дети 3-7 лет, '!D19 -> 0 | C18: ='[5]Дневной рацион, Дети до 3х лет'!E19 -> 0 | D18: ='[5]Дневной рацион, Дети до 3х лет'!F19 -> 0 | E18: ='[5]Дневной рацион, Дети до 3х лет'!G19 -> 0 | F18: ='[5]Дневной рацион, Дети до 3х лет'!H19 -> 0 | G18: ='[5]Дневной рацион, Дети до 3х лет'!I19 -> 0

Sheet Дети 3-7 лет
A3: Прием пищи | B3: Блюдо | C3: Выход | D3: Калорийность | E3: Белки | F3: Жиры | G3: Углеводы
A4: Завтрак | B4: ='[4]Дневной рацион, Дети 3-7 лет, '!D4 -> Каша вязкая молочная пшенная. | C4: ='[4]Дневной рацион, Дети 3-7 лет, '!E4 -> 200 | D4: ='[4]Дневной рацион, Дети 3-7 лет, '!G4 -> 206.2 | E4: ='[4]Дневной рацион, Дети 3-7 лет, '!H4 -> 6.3 | F4: ='[4]Дневной рацион, Дети 3-7 лет, '!I4 -> 7.6 | G4: ='[4]Дневной рацион, Дети 3-7 лет, '!J4 -> 28.2
B5: ='[4]Дневной рацион, Дети 3-7 лет, '!D5 -> Бутерброды с маслом . | C5: ='[4]Дневной рацион, Дети 3-7 лет, '!E5 -> 25 | D5: ='[4]Дневной рацион, Дети 3-7 лет, '!G5 -> 121.667 | E5: ='[4]Дневной рацион, Дети 3-7 лет, '!H5 -> 1.334 | F5: ='[4]Дневной рацион, Дети 3-7 лет, '!I5 -> 9.167 | G5: ='[4]Дневной рацион, Дети 3-7 лет, '!J5 -> 8.334
B6: ='[4]Дневной рацион, Дети 3-7 лет, '!D6 -> Сыр | C6: ='[4]Дневной рацион, Дети 3-7 лет, '!E6 -> 12 | D6: ='[4]Дневной рацион, Дети 3-7 лет, '!G6 -> 130.92 | E6: ='[4]Дневной рацион, Дети 3-7 лет, '!H6 -> 8.4 | F6: ='[4]Дневной рацион, Дети 3-7 лет, '!I6 -> 10.8 | G6: ='[4]Дневной рацион, Дети 3-7 лет, '!J6 -> 0
B7: ='[4]Дневной рацион, Дети 3-7 лет, '!D7 -> КОФЕЙНЫЙ НАПИТОК С МОЛОКОМ . | C7: ='[4]Дневной рацион, Дети 3-7 лет, '!E7 -> 200 | D7: ='[4]Дневной рацион, Дети 3-7 лет, '!G7 -> 58.9 | E7: ='[4]Дневной рацион, Дети 3-7 лет, '!H7 -> 2.3 | F7: ='[4]Дневной рацион, Дети 3-7 лет, '!I7 -> 1.9 | G7: ='[4]Дневной рацион, Дети 3-7 лет, '!J7 -> 8.2
A8: Завтарк №2
B10: =' Дети до 3-х лет'!B7 -> Суп картофельный с крупой гречневой. | C10: =' Дети до 3-х лет'!C7 -> 170 | D10: ='[4]Дневной рацион, Дети 3-7 лет, '!G8 -> 16.049 | E10: ='[4]Дневной рацион, Дети 3-7 лет, '!H8 -> 0.614 | F10: ='[4]Дневной рацион, Дети 3-7 лет, '!I8 -> 0.103 | G10: ='[4]Дневной рацион, Дети 3-7 лет, '!J8 -> 3.169
A11: Обед | B11: =' Дети до 3-х лет'!B8 -> Печень говяжья по-строгановски. | C11: =' Дети до 3-х лет'!C8 -> 60 | D11: ='[3]Дневной рацион, Дети 3-7 лет, '!G8 -> 69.8 | E11: ='[3]Дневной рацион, Дети 3-7 лет, '!H8 -> 1.78 | F11: ='[3]Дневной рацион, Дети 3-7 лет, '!I8 -> 2.18 | G11: ='[3]Дневной рацион, Дети 3-7 лет, '!J8 -> 10.74
B12: =' Дети до 3-х лет'!B9 -> Пюре картофельное . | C12: =' Дети до 3-х лет'!C9 -> 100 | D12: ='[3]Дневной рацион, Дети 3-7 лет, '!G9 -> 198.66 | E12: ='[3]Дневной рацион, Дети 3-7 лет, '!H9 -> 14.14 | F12: ='[3]Дневной рацион, Дети 3-7 лет, '!I9 -> 13.16 | G12: ='[3]Дневной рацион, Дети 3-7 лет, '!J9 -> 5.6
B13: =' Дети до 3-х лет'!B10 -> Компот из сушеных фруктов (изюм). | C13: =' Дети до 3-х лет'!C10 -> 177 | D13: ='[3]Дневной рацион, Дети 3-7 лет, '!G10 -> 172.691 | E13: ='[3]Дневной рацион, Дети 3-7 лет, '!H10 -> 3.273 | F13: ='[3]Дневной рацион, Дети 3-7 лет, '!I10 -> 6.219 | G13: ='[3]Дневной рацион, Дети 3-7 лет, '!J10 -> 25.855
B14: =' Дети до 3-х лет'!B11 -> Хлеб пшеничный | C14: =' Дети до 3-х лет'!C11 -> 30 | D14: ='[3]Дневной рацион, Дети 3-7 лет, '!G11 -> 20.134 | E14: ='[3]Дневной рацион, Дети 3-7 лет, '!H11 -> 0.355 | F14: ='[3]Дневной рацион, Дети 3-7 лет, '!I11 -> 0.02 | G14: ='[3]Дневной рацион, Дети 3-7 лет, '!J11 -> 4.63
B15: =' Дети до 3-х лет'!B12 -> Хлеб ржаной | C15: =' Дети до 3-х лет'!C12 -> 30 | D15: ='[3]Дневной рацион, Дети 3-7 лет, '!G12 -> 0 | E15: ='[3]Дневной рацион, Дети 3-7 лет, '!H12 -> 0 | F15: ='[3]Дневной рацион, Дети 3-7 лет, '!I12 -> 0 | G15: ='[3]Дневной рацион, Дети 3-7 лет, '!J12 -> 0
B16: =' Дети до 3-х лет'!B13 -> Булочка дорожная . | C16: =' Дети до 3-х лет'!C13 -> 51 | D16: ='[3]Дневной рацион, Дети 3-7 лет, '!G13 -> 0 | E16: ='[3]Дневной рацион, Дети 3-7 лет, '!H13 -> 0 | F16: ='[3]Дневной рацион, Дети 3-7 лет, '!I13 -> 0 | G16: ='[3]Дневной рацион, Дети 3-7 лет, '!J13 -> 0
B17: =' Дети до 3-х лет'!B14 -> Молоко кипяченое | C17: =' Дети до 3-х лет'!C14 -> 179 | D17: ='[3]Дневной рацион, Дети 3-7 лет, '!G14 -> 169.32 | E17: ='[3]Дневной рацион, Дети 3-7 лет, '!H14 -> 3.57 | F17: ='[3]Дневной рацион, Дети 3-7 лет, '!I14 -> 1.428 | G17: ='[3]Дневной рацион, Дети 3-7 лет, '!J14 -> 35.496
A18: Полдник | B18: =' Дети до 3-х лет'!B15 -> Кисель витаминизированный Витошка. | C18: =' Дети до 3-х лет'!C15 -> 175 | D18: ='[3]Дневной рацион, Дети 3-7 лет, '!G15 -> 94.87 | E18: ='[3]Дневной рацион, Дети 3-7 лет, '!H15 -> 5.191 | F18: ='[3]Дневной рацион, Дети 3-7 лет, '!I15 -> 4.475 | G18: ='[3]Дневной рацион, Дети 3-7 лет, '!J15 -> 8.592
B19: =' Дети до 3-х лет'!B16 -> Хлеб пшеничный | C19: =' Дети до 3-х лет'!C16 -> 20 | D19: ='[3]Дневной рацион, Дети 3-7 лет, '!G16 -> 55.002 | E19: ='[3]Дневной рацион, Дети 3-7 лет, '!H16 -> 0.206 | F19: ='[3]Дневной рацион, Дети 3-7 лет, '!I16 -> 0 | G19: ='[3]Дневной рацион, Дети 3-7 лет, '!J16 -> 13.596
B20: =' Дети до 3-х лет'!B17 -> Каша вязкая молочная овсяная с курагой. | C20: =' Дети до 3-х лет'!C17 -> 150 | D20: ='[3]Дневной рацион, Дети 3-7 лет, '!G17 -> 0 | E20: ='[3]Дневной рацион, Дети 3-7 лет, '!H17 -> 0 | F20: ='[3]Дневной рацион, Дети 3-7 лет, '!I17 -> 0 | G20: ='[3]Дневной рацион, Дети 3-7 лет, '!J17 -> 0
A21: Ужин | B21: =' Дети до 3-х лет'!B18 -> 0 | C21: =' Дети до 3-х лет'!C18 -> 0 | D21: ='[3]Дневной рацион, Дети 3-7 лет, '!G18 -> 313.425 | E21: ='[3]Дневной рацион, Дети 3-7 лет, '!H18 -> 8.756 | F21: ='[3]Дневной рацион, Дети 3-7 лет, '!I18 -> 12.637 | G21: ='[3]Дневной рацион, Дети 3-7 лет, '!J18 -> 41.293
